Cogmind - Beta 12 X4 @@@ ROGUE MODE // 2023.01.02 @ 02:45:23 Player: Cracklepappy Result: Destroyed by P-80 Master with Gamma Rifle Performance ------------- Evolutions (7) 3500 Regions Visited (27) 5400 Robots Destroyed (217) 1085 Value Destroyed (11523) 11523 Prototype IDs (48) 960 Alien Tech Used (10) 2000 Bonus (9916) 9916 TOTAL SCORE: 34384 Bonus ------- High Alert Combat Kills 596 Follower Combat Kills 2393 Entered Garrisons 1400 Used RIF Installer 4500 Network Hubs Disabled 200 Aligned with FarCom 300 Met Zhirov 300 Met R17 at Cetus 500 Read Decrypted Archives 300 Friendly Fire -573 Cogmind --------- Core Integrity 0/1300 Matter 177/300 Energy 87/100 System Corruption 8% Temperature Cool (0) Movement Core (50) Location -3/Section 7 Parts ------- > --- POWER (1) -------- (None) > --- PROPULSION (6) --- (None) > --- UTILITY (12) ----- Enhanced Optical Array Advanced Signal Interpreter Melee Analysis Suite Relay Coupler [NC] (24) Relay Coupler [Behemoth] (12) Spacefold Activator > --- WEAPON (2) ------- (None) > --- INVENTORY (5) ---- Superbattery (1500) Subatomic Replicator Enhanced Nova Cannon Sigix Broadsword Peak State ------------ > --- POWER ------------ Micro Antimatter Reactor > --- PROPULSION ------- Improved Surge Thruster Cooled Nuclear Pulse Thruster Q-thruster Impulse Thruster Array > --- UTILITY ---------- Advanced Cooling System Superbattery Enhanced Optical Array Advanced Signal Interpreter Melee Analysis Suite Improved Target Analyzer Improved Transmission Jammer Relay Coupler [NC] Relay Coupler [Sentry] Relay Coupler [Behemoth] Core Physics Calibrator Spacefold Activator > --- WEAPON ----------- Sigix Broadsword > --- INVENTORY -------- High-powered Transdimensional Reconstructor Subatomic Replicator Enhanced Nova Cannon Core Stripper [Rating: 157] Favorites ----------- Power Light Antimatter Reactor Engine Improved Ion Engine Power Core Micro Fission Core Reactor Light Antimatter Reactor Propulsion Light Treads Treads Light Treads Leg Carbon-fiber Leg Wheel Compact Wheel Hover Unit Linear Gravjet Flight Unit Improved Flight Unit Utility Enhanced Optical Array Device Nanoactuators Storage High-capacity Storage Unit Processor Enhanced Optical Array Hackware Relay Coupler [Sentry] Protection Core Shielding Artifact Spacefold Activator Weapon Longsword +1 Energy Gun Medium Laser Energy Cannon Light EM Pulse Cannon Ballistic Gun Improved Assault Rifle Launcher Grenade Launcher Special Weapon Remote Datajack Impact Weapon Power Maul Slashing Weapon Longsword +1 Piercing Weapon Lance Special Melee Weapon Improved Datajack Build | -11 -10 -10 -9 -9 -9 -8 -8 -8 -8 -8 -7 -7 -6 -6 -5 -5 -4 -4 -4 -4 -4 -4 -4 -4 -3 -3 -3 ------- Run | Scr Mat Min Mat Min Exi Min Mat Gar Mat Gar Fac Gar Fac Gar Fac Gar Fac Gar Fac Ext Cet Arc Hub Gar Res Qua Sec Slots Evolved 14 | . . . 2 . . . 2 . . . 2 . 2 . 2 . 2 . . . . . . . 2 . . Power . | . . . . . . . . . . . . . . . . . . . . . . . . . . . . Propulsion 4 | . . . 1 . . . 1 . . . 1 . 1 . . . . . . . . . . . . . . Utility 10 | . . . 1 . . . 1 . . . 1 . 1 . 2 . 2 . . . . . . . 2 . . Weapon . | . . . . . . . . . . . . . . . . . . . . . . . . . . . . Parts Attached 421 | 8 20 5 23 5 17 . 27 5 2 3 17 15 7 21 1 45 17 12 4 21 7 4 29 33 17 29 27 Power 42 | 1 2 2 2 . 1 . 2 . . . 3 1 . 2 . 4 3 1 . 3 . . 2 4 2 3 4 Engine 14 | 1 2 2 2 . 1 . 1 . . . 1 . . 1 . 2 . 1 . . . . . . . . . Core 17 | . . . . . . . 1 . . . 2 . . 1 . 2 1 . . 2 . . 2 4 . 1 1 Reactor 11 | . . . . . . . . . . . . 1 . . . . 2 . . 1 . . . . 2 2 3 Propulsion 83 | 2 3 . 8 1 4 . 8 . . . 2 . 2 . . 11 2 1 . 1 1 . 7 9 5 8 8 Treads 16 | 1 2 . 7 1 4 . 1 . . . . . . . . . . . . . . . . . . . . Leg 1 | . . . . . . . 1 . . . . . . . . . . . . . . . . . . . . Wheel 5 | 1 1 . . . . . 2 . . . . . . . . . . . . . . . 1 . . . . Hover 7 | . . . . . . . . . . . . . . . . . . . . . . . 5 1 . . 1 Flight 54 | . . . 1 . . . 4 . . . 2 . 2 . . 11 2 1 . 1 1 . 1 8 5 8 7 Utility 177 | 2 7 1 4 . 3 . 8 2 . 1 7 12 5 9 1 21 10 6 3 8 5 4 13 18 7 12 8 Device 68 | 1 3 1 . . . . 3 . . . . 3 5 4 . 4 7 3 3 4 1 . 8 5 5 5 3 Storage 13 | 1 3 . . . 1 . 2 . . . . 1 . . . . . . . . . . 1 2 . 2 . Processor 7 | . . . . . . . 1 . . . 2 . . . . . 1 . . . . . . . 1 1 1 Hackware 41 | . . . . . . . 2 2 . 1 2 3 . 4 1 11 . 3 . . 1 4 1 5 1 . . Protection 43 | . 1 . 4 . 2 . . . . . 3 5 . 1 . 6 2 . . 4 3 . 3 6 . 3 . Artifact 5 | . . . . . . . . . . . . . . . . . . . . . . . . . . 1 4 Weapon 119 | 3 8 2 9 4 9 . 9 3 2 2 5 2 . 10 . 9 2 4 1 9 1 . 7 2 3 6 7 Energy Gun 7 | 2 3 . . . . . . . . . 1 . . . . . . . . . . . 1 . . . . Energy Cannon 19 | . 2 1 2 . . . . 1 1 1 1 . . . . . . . . 1 . . 5 1 . . 3 Ballistic Gun 24 | 1 1 . 7 2 7 . 5 . . . . . . . . . . . 1 . . . . . . . . Ballistic Cannon . | . . . . . . . . . . . . . . . . . . . . . . . . . . . . Launcher 14 | . 2 1 . 2 2 . 3 . . . . . . 3 . 1 . . . . . . . . . . . Special Weapon 18 | . . . . . . . . . . . 1 1 . 4 . 3 . 3 . 2 1 . . . 1 2 . Impact Weapon 2 | . . . . . . . . . . . . . . . . . 1 . . . . . . . . 1 . Slashing Weapon 19 | . . . . . . . 1 . . . 1 . . 1 . 4 . . . 5 . . 1 1 . 1 4 Piercing Weapon 3 | . . . . . . . . . . . . . . . . . . . . . . . . . 1 2 . Special Melee Weapon 13 | . . . . . . . . 2 1 1 1 1 . 2 . 1 1 1 . 1 . . . . 1 . . Unidentified Prototypes 12 | . . . 2 . . . . . . . . . . . . 1 . . . . 1 . . . 1 3 4 Corrupted Parts 4 | . . . 1 . . . . . . . . . . . . 2 . . . . . . . 1 . . . System Corruption 18 | . . . 4 . . . . . . . . . . . . 9 . . . . . . . 5 . . . Parts Lost 93 | . 4 . 2 . 9 . 12 1 . . 2 . . 1 . 11 . 5 . 3 5 . 10 6 1 6 15 Power 7 | . 1 . . . 1 . 2 . . . . . . . . 1 . 1 . . . . . . . 1 . Propulsion 48 | . 2 . 2 . 4 . 5 . . . 2 . . . . 5 . . . 1 4 . 5 6 1 1 10 Utility 20 | . . . . . 1 . 1 . . . . . . 1 . 2 . 2 . 1 1 . 4 . . 2 5 Weapon 18 | . 1 . . . 3 . 4 1 . . . . . . . 3 . 2 . 1 . . 1 . . 2 . Highest Loss Streak 9 | . 3 . 1 . 9 . 5 1 . . 2 . . 1 . 6 . 3 . 2 4 . 3 2 1 3 4 To Critical Strikes . | . . . . . . . . . . . . . . . . . . . . . . . . . . . . Average Slot Usage (%) 88 | . 98 99 98 100 87 88 67 100 100 100 83 76 80 74 64 75 89 85 87 88 75 53 79 74 89 83 81 Engine 5 | . 12 13 11 11 9 11 5 9 9 9 1 . . . 5 1 . 3 5 . . . . . . . . Reactor 1 | . . . . . . . . . . . . 6 6 4 . . 4 1 . 3 3 . . . 3 3 3 Treads 10 | . 23 28 32 33 32 33 14 . . . . . . . . . . . . . . . . . . . . Flight 14 | . . . . . . . 6 36 36 36 23 15 20 20 17 19 26 21 21 21 16 5 5 16 26 20 18 Device 9 | . 11 14 6 . . . 4 . . . . 3 13 11 5 7 16 21 29 28 18 8 6 5 13 17 16 Storage 6 | . 14 14 11 11 11 11 8 9 9 9 7 7 6 6 5 3 . . . . . . . . . 2 3 Processor 4 | . . . . . . . . . . . 7 7 6 6 5 5 5 5 5 5 5 5 5 5 8 11 15 Hackware 11 | . . . . . . . 1 26 27 27 18 9 5 2 5 16 25 21 16 15 15 28 35 30 23 16 13 Protection 5 | . 2 . 15 22 20 11 2 . . . 3 8 6 6 5 5 3 3 . 2 6 . 1 4 4 1 . Energy Gun 1 | . 16 . . . . . . . . . . . . . . . . . . . . . . . . . . Energy Cannon 2 | . 4 27 3 . . . . . . . . . . . . . . . . . . . . . . . . Ballistic Gun 4 | . 7 . 17 21 12 22 14 . . . . . . . . . . . 3 1 . . . . . . . Slashing Weapon 3 | . . . . . . . 1 9 9 9 6 7 6 5 5 3 2 . . 5 8 5 4 4 . 1 3 Special Melee Weapon 1 | . . . . . . . . 8 8 8 4 1 . 1 . . . 1 . . . . . . . . . Naked Turns . | . . . . . . . . . . . . . . . . . . . . . . . . . . . . Heaviest Build 59 | 13 54 56 59 57 57 56 56 19 22 17 29 44 42 51 48 56 22 22 27 41 40 6 35 27 31 37 32 Greatest Support 80 | 16 40 40 60 60 60 60 80 20 20 20 55 55 61 61 61 61 39 39 39 41 41 6 48 27 49 50 46 Greatest Overweight (x) 3 | . 1 1 1 . . . 3 . 1 . . . . . . . . . . . 2 . 3 3 . . 1 Average Overweight (x) . | . . 1 . . . . . . . . . . . . . . . . . . . . . . . . . Largest Inventory Capacity 20 | 8 20 20 20 20 20 20 20 10 10 10 10 10 10 10 10 10 5 5 5 5 5 5 5 5 5 5 5 Average Capacity 11 | 7 17 20 20 20 20 20 17 10 10 10 10 10 10 10 10 8 5 5 5 5 5 5 5 5 5 5 5 Most Carried 20 | 8 20 20 20 20 20 18 18 10 10 10 10 10 10 10 10 10 5 5 5 5 5 5 5 5 5 5 5 Average Carried 11 | 4 16 19 19 20 17 18 14 9 10 9 9 9 9 9 9 8 4 4 5 4 4 5 4 4 4 4 4 Final Capacity 20 | 8 20 20 20 20 20 20 10 10 10 10 10 10 10 10 10 5 5 5 5 5 5 5 5 5 5 5 5 Final Carried 20 | 8 20 20 20 20 18 18 10 10 10 10 10 10 10 10 9 5 5 5 5 5 5 5 5 5 5 5 5 Class Distribution -------------------- 30% | Mutant 18% | Scavenger-Mutant 12% | Hacker-Sprinter 5% | Sprinter 4% | Ninja 3% | Hacker-Mutant Dominant Class ---------------- Mutant | -10/Materials Mutant | -10/Mines Scavenger-Mutant | -9/Materials Scavenger-Mutant | -9/Mines Scavenger-Mutant | -9/Exiles Scavenger-Mutant | -8/Mines Scavenger-Mutant | -8/Materials Hacker-Sprinter | -8/Garrison Hacker-Sprinter | -8/Materials Hacker-Sprinter | -8/Garrison Hacker-Mutant | -7/Factory Mutant | -7/Garrison Mutant | -6/Factory Mutant | -6/Garrison Bothacker-Mutant | -5/Factory Mutant | -5/Garrison Bothacker-Sprinter | -4/Factory Bothacker-Sprinter | -4/Garrison Sprinter | -4/Factory Sprinter | -4/Extension Sprinter | -4/Cetus Mutant | -4/Archives Wizard-Mutant | -4/Hub_04(d) Scavenger-Sprinter | -4/Garrison Scavenger-Scout | -3/Research Assassin | -3/Quarantine Ninja | -3/Section 7 Resources | -11 -10 -10 -9 -9 -9 -8 -8 -8 -8 -8 -7 -7 -6 -6 -5 -5 -4 -4 -4 -4 -4 -4 -4 -4 -3 -3 -3 ----------- Run | Scr Mat Min Mat Min Exi Min Mat Gar Mat Gar Fac Gar Fac Gar Fac Gar Fac Gar Fac Ext Cet Arc Hub Gar Res Qua Sec Matter Collected 6369 | 310 362 217 733 94 369 . 721 203 . 50 124 246 60 300 . 496 130 91 . 414 126 30 174 375 170 357 217 Remotely . | . . . . . . . . . . . . . . . . . . . . . . . . . . . . Salvage Created 8788 | 161 765 240 1122 28 494 . 672 152 . 319 94 135 318 407 . 701 130 38 . 450 382 74 224 404 167 588 723 Parts 477 | 9 41 13 71 6 28 . 33 7 . 11 11 8 19 27 . 24 4 . . 22 12 7 10 18 19 40 37 Haulers Intercepted 7 | . 2 . 3 . . . . . . . . . 1 . . . . . . . . . . . . . 1 Recyclers Shooed 5 | 1 . . . . . . 2 . . . . . . . . . . . . . . . 2 . . . . Parts Field Recycled . | . . . . . . . . . . . . . . . . . . . . . . . . . . . . Retrieved Matter . | . . . . . . . . . . . . . . . . . . . . . . . . . . . . Parts Self-Destructed . | . . . . . . . . . . . . . . . . . . . . . . . . . . . . Prevented . | . . . . . . . . . . . . . . . . . . . . . . . . . . . . Kills | -11 -10 -10 -9 -9 -9 -8 -8 -8 -8 -8 -7 -7 -6 -6 -5 -5 -4 -4 -4 -4 -4 -4 -4 -4 -3 -3 -3 ------- Run | Scr Mat Min Mat Min Exi Min Mat Gar Mat Gar Fac Gar Fac Gar Fac Gar Fac Gar Fac Ext Cet Arc Hub Gar Res Qua Sec Combat Hostiles Destroyed 171 | . 20 9 17 6 20 . 12 3 . 4 1 3 8 11 . 11 . 2 . 4 5 . 2 12 2 10 9 Melee 73 | . . . . . . . . 3 . 4 1 3 8 6 . 9 . 1 . 1 5 . 2 9 2 10 9 Guns 44 | . 14 . 15 . 3 . 9 . . . . . . . . . . . . 3 . . . . . . . Cannons 11 | . . 7 2 . . . . . . . . . . . . . . . . . . . . 2 . . . AOE 41 | . 6 2 . 6 17 . 3 . . . . . . 5 . 2 . . . . . . . . . . . Classes Destroyed 17 | 2 5 3 1 . 4 . . . . . . . . 2 . . . . . . . . . . . . . Worker 12 | . 2 . 2 . . . 2 . . . . . . . . . . . . . . . 6 . . . . Builder 3 | . . 2 . . . . . . . . . . . . . . . . . . . . 1 . . . . Tunneler 4 | 3 . . . . . . 1 . . . . . . . . . . . . . . . . . . . . Hauler 7 | . 2 . 3 . . . . . . . . . 1 . . . . . . . . . . . . . 1 Recycler 5 | 1 . . 1 . . . 2 . . . . . . . . . . . . . . . . . . . 1 Operator 3 | . . . 1 . . . 1 . . . . . . . . . . . . 1 . . . . . . . Watcher 15 | . 1 . 2 . . . 1 . . . 2 . . . . . 3 . . 1 1 . . . 1 1 2 Swarmer 57 | . 6 1 1 6 . . 4 . . . . 2 7 5 . 2 . 2 . . . . 3 10 . 4 4 Cutter 6 | . . . . . . . . . . . . . . 3 . . . . . . . . . . . . 3 Grunt 53 | . 14 2 9 . 10 . 8 3 . 2 . . . 2 . 1 . . . 1 . . . . . 1 . Brawler 1 | . . . . . 1 . . . . . . . . . . . . . . . . . . . . . . Duelist 1 | . . . . . 1 . . . . . . . . . . . . . . . . . . . . . . Sentry 22 | . . 1 7 . . . . . . . . 1 . . . 7 . . . 4 . . . 1 . . 1 Hunter 8 | . . . . . 4 . . . . 2 . . . . . 1 . . . . 1 . . . . . . Programmer 15 | . . . . . 4 . . . . . 1 . 1 . . . . . . . . . . 1 2 5 1 Behemoth 1 | . . . . . . . . . . . . . . 1 . . . . . . . . . . . . . Cetus Guard 4 | . . . . . . . . . . . . . . . . . . . . . 4 . . . . . . Assembled 5 | . . 5 . . . . . . . . . . . . . . . . . . . . . . . . . Best Kill Streak 19 | 3 3 5 4 3 19 . 7 2 . 3 2 3 5 3 . 2 1 2 . 2 3 . 3 4 2 4 3 Combat Bots Only 19 | . 3 3 4 3 19 . 3 2 . 3 1 3 4 3 . 2 . 2 . 2 2 . 2 4 2 4 3 Max Kills in Single Turn 5 | 1 3 2 2 2 5 . 2 1 . 1 1 1 1 2 . 2 1 1 . 1 1 . 2 1 1 1 1 Gunslinging . | . . . . . . . . . . . . . . . . . . . . . . . . . . . . Exploded 5 | . 3 1 . 2 5 . 2 . . . . . . 2 . 2 . . . . . . . . . . . Melee 1 | . . . . . . . . 1 . 1 1 1 1 1 . 1 . 1 . 1 1 . 1 1 1 1 1 Uniques/NPCs Destroyed . | . . . . . . . . . . . . . . . . . . . . . . . . . . . . Combat | -11 -10 -10 -9 -9 -9 -8 -8 -8 -8 -8 -7 -7 -6 -6 -5 -5 -4 -4 -4 -4 -4 -4 -4 -4 -3 -3 -3 -------- Run | Scr Mat Min Mat Min Exi Min Mat Gar Mat Gar Fac Gar Fac Gar Fac Gar Fac Gar Fac Ext Cet Arc Hub Gar Res Qua Sec Damage Taken 18141 | . 745 147 764 57 1423 . 1637 75 . 96 313 351 201 481 63 1628 67 612 . 561 705 22 935 1033 430 1865 3930 Core 3889 | . 124 47 105 . 162 . 274 27 . 55 150 48 . 42 . 193 41 204 . 111 203 . 287 214 82 433 1087 Absorbed by Shields 965 | . . . . . . . . . . . . . . 15 . 158 . 20 . 23 135 . . 511 . . 103 Redirected to Core 111 | . . . . . . . . . . . . . . . . . . . . . . . . . . 111 . Redirected to Shielding 166 | . 14 . 19 . 31 . . . . . . . . . . 1 17 84 . . . . . . . . . Regen/Repaired (Parts) 1863 | . . . 149 . . . . . . . . . . . . . . . . . . . . . . 280 1434 Core Remaining (%) 56 | 100 . 31 . . . 33 . . . 35 . 71 . 95 . 80 . . . . . . . 7 . . . Volleys Fired 450 | 10 92 17 90 4 21 . 74 2 4 1 2 12 . 16 3 17 . 11 . 30 . . 12 6 . 2 24 Largest 2 | 2 2 2 2 2 2 . 2 1 1 1 1 1 . 1 1 1 . 1 . 1 . . 1 1 . 1 1 Hottest 120 | 60 90 112 112 53 46 . 46 75 75 75 75 5 . 39 5 39 . 5 . 120 . . 120 88 . 10 120 Shots Fired 710 | 20 180 31 165 6 28 . 139 2 4 1 2 12 . 16 3 17 . 11 . 30 . . 12 6 . 2 23 Gun 521 | 20 176 . 155 2 14 . 134 . . . . . . . . . . . . 20 . . . . . . . Cannon 95 | . . 26 10 . . . . 2 4 1 2 . . . . . . . . 9 . . 12 6 . . 23 Launcher 40 | . 4 5 . 4 14 . 5 . . . . . . 4 . 4 . . . . . . . . . . . Special 54 | . . . . . . . . . . . . 12 . 12 3 13 . 11 . 1 . . . . . 2 . Kinetic 395 | 10 60 . 155 2 14 . 134 . . . . . . . . . . . . 20 . . . . . . . Thermal 179 | 10 116 . . . . . . 2 4 1 2 . . . . . . . . 9 . . 12 . . . 23 Explosive 32 | . 4 5 . 4 14 . 5 . . . . . . . . . . . . . . . . . . . . Electromagnetic 50 | . . 26 10 . . . . . . . . . . 4 . 4 . . . . . . . 6 . . . Robot Hit Streak 15 | 11 12 5 15 . 10 . 12 . . . . 6 . 4 5 14 . 4 . 13 . . 1 7 . 9 . Robot Miss Streak 5 | 2 5 3 5 . 1 . 3 . . . . 1 . 1 . 1 . 2 . 2 . . 1 . . . . Penetration Max 1 | . . . . . . . . . . . . . . . . . . . . 1 . . . . . . . Secondary Targets 3 | . . . 2 . . . 1 . . . . . . . . . . . . . . . . . . . . Max Gunslinging Chain 1 | . . . 1 . . . 1 . . . . . . . . . . . . . . . . . . . . Shots Hit Robots 744 | 17 110 16 116 . 12 . 95 8 . 18 6 17 13 36 3 66 3 12 . 28 37 3 31 32 4 35 26 Core Hits 342 | 5 43 16 41 6 52 . 37 3 . 5 3 5 8 15 . 21 1 . . 13 11 1 15 14 4 14 9 Critical Kills 2 | . 2 . . . . . . . . . . . . . . . . . . . . . . . . . . Critical Parts Destroyed 1 | . . . . . . . . . . . . . . . . . . 1 . . . . . . . . . Critical Strikes 35 | . 7 . . . . . . . . . 1 1 . 1 . 7 . 1 . 1 8 . 3 3 . 1 1 Burn 5 | . 5 . . . . . . . . . . . . . . . . . . . . . . . . . . Destroy 2 | . 2 . . . . . . . . . . . . . . . . . . . . . . . . . . Smash 1 | . . . . . . . . . . . . . . . . . . 1 . . . . . . . . . Sever 26 | . . . . . . . . . . . 1 1 . 1 . 7 . . . 1 8 . 3 3 . . 1 Impale 1 | . . . . . . . . . . . . . . . . . . . . . . . . . . 1 . Melee Attacks 575 | . . . . . . . 4 11 8 29 20 26 22 42 5 66 12 12 5 13 45 3 49 45 27 76 55 Impact 23 | . . . . . . . . . . . . . . . . . 5 12 5 1 . . . . . . . Slashing 436 | . . . . . . . 4 10 8 21 16 26 22 33 5 66 7 . . 12 45 3 49 45 . 9 55 Piercing 94 | . . . . . . . . . . . . . . . . . . . . . . . . . 27 67 . Sneak Attacks 45 | . . . . . . . 1 2 . 9 . 1 1 10 . 4 1 . . 1 . . 10 2 . 1 2 Combat Hostiles 12 | . . . . . . . . 2 . 2 . 1 . 1 . 4 . . . . . . . 2 . . . Follow-up Attacks 9 | . . . . . . . . . . . . . . . . . . . . 3 6 . . . . . . Damage Inflicted 26671 | 208 1807 637 1798 301 1867 . 2020 388 . 632 235 647 755 1202 . 2889 247 298 . 1157 1759 342 2049 1324 182 1498 2429 Guns 5506 | 208 1339 . 1636 . 167 . 1554 . . . . . . . . . . . . 602 . . . . . . . Cannons 776 | . . 319 141 . . . . . . . . . . . . . . . . . . . 127 189 . . . Explosions 3833 | . 452 317 . 301 1700 . 261 . . . . . . 296 . 130 . . . 78 . . 298 . . . . Melee 16483 | . . . . . . . 205 388 . 632 235 647 755 906 . 2759 247 298 . 477 1759 342 1589 1135 182 1498 2429 Ramming 73 | . 16 1 21 . . . . . . . . . . . . . . . . . . . 35 . . . . Kinetic 4530 | 119 452 . 1636 . 167 . 1554 . . . . . . . . . . . . 602 . . . . . . . Thermal 1181 | 89 887 . . . . . . . . . . . . . . . . . . 78 . . 127 . . . . Explosive 3031 | . 452 317 . 301 1700 . 261 . . . . . . . . . . . . . . . . . . . . Electromagnetic 1373 | . . 319 141 . . . . . . . . . . 296 . 130 . . . . . . 298 189 . . . Impact 492 | . . . . . . . . . . . . . . . . . 194 298 . . . . . . . . . Slashing 14768 | . . . . . . . 205 388 . 632 235 647 755 906 . 2759 53 . . 477 1759 342 1589 1135 . 457 2429 Piercing 1223 | . . . . . . . . . . . . . . . . . . . . . . . . . 182 1041 . Highest Corruption 14 | . 6 6 4 4 8 8 . . . . . . . . . 13 . . . . . . 7 14 . 6 8 Average Corruption 5 | . 3 6 4 4 4 8 . . . . . . . . . 10 . . . . . . 7 11 . 3 6 Corruption Purged . | . . . . . . . . . . . . . . . . . . . . . . . . . . . . Corruption Blocked . | . . . . . . . . . . . . . . . . . . . . . . . . . . . . Effects 221 | . 24 39 41 11 24 3 . . . . . . . . . 4 . . . . . . 6 8 . 16 45 Message Errors 50 | . 7 10 8 2 3 . . . . . . . . . . 1 . . . . . . 2 4 . 3 10 Matter Fused 53 | . 4 11 10 3 5 . . . . . . . . . . 2 . . . . . . 1 . . 5 12 Heat Flow Errors 34 | . 4 6 6 1 5 2 . . . . . . . . . . . . . . . . . 2 . 2 6 Energy Discharges 20 | . 2 3 4 2 1 . . . . . . . . . . . . . . . . . 1 . . 3 4 Parts Rejected 9 | . 2 . 2 . 1 . . . . . . . . . . . . . . . . . . . . 1 3 Data Loss (minor) 30 | . 1 5 6 3 5 1 . . . . . . . . . . . . . . . . 1 . . 1 7 Data Loss (major) 10 | . . 2 1 . 4 . . . . . . . . . . . . . . . . . 1 1 . . 1 Misfires 6 | . 2 2 2 . . . . . . . . . . . . . . . . . . . . . . . . Alerts 6 | . 1 . 2 . . . . . . . . . . . . 1 . . . . . . . . . 1 1 Misdirections 1 | . . . . . . . . . . . . . . . . . . . . . . . . 1 . . . Weapon Failures 2 | . 1 . . . . . . . . . . . . . . . . . . . . . . . . . 1 Overload Shots . | . . . . . . . . . . . . . . . . . . . . . . . . . . . . Overflow Damage 1924 | . 9 28 . 3 . . 39 16 . 82 8 . 109 127 . 15 146 117 . 97 43 175 251 110 . 139 410 Projectiles 43 | . . 17 . . . . . . . . . . . . . . . . . . . . 26 . . . . Explosions 94 | . 9 11 . 3 . . 21 . . . . . . . . 9 . . . . . . 41 . . . . Melee 1787 | . . . . . . . 18 16 . 82 8 . 109 127 . 6 146 117 . 97 43 175 184 110 . 139 410 Knockbacks 3 | . . . . . . . . . . . . . . . . . . 2 . . . . 1 . . . . Impact 2 | . . . . . . . . . . . . . . . . . . 1 . . . . 1 . . . . Kinetic . | . . . . . . . . . . . . . . . . . . . . . . . . . . . . Secondary 1 | . . . . . . . . . . . . . . . . . . 1 . . . . . . . . . Self-Inflicted Damage 272 | . . . . 14 . . 79 . . . . . . 5 . 68 . . . . . . 106 . . . . Shots 11 | . . . . 2 . . 3 . . . . . . 1 . 4 . . . . . . 1 . . . . Rammed 12 | . 4 1 5 . . . . . . . . . . . . . . . . . . . 2 . . . . Targets Rammed 12 | . 4 1 5 . . . . . . . . . . . . . . . . . . . 2 . . . . Kicked . | . . . . . . . . . . . . . . . . . . . . . . . . . . . . Crushed . | . . . . . . . . . . . . . . . . . . . . . . . . . . . . Highest Temperature 268 | . 219 268 197 130 219 258 20 60 120 30 60 20 . 24 . 60 35 . . 249 6 . 265 255 36 115 194 Average Temperature 60 | . 76 64 45 69 81 136 5 31 63 17 24 8 . 11 . 20 13 . . 88 4 . 84 44 11 71 54 Received Heat Transfer 2889 | . 378 44 345 . 36 . 882 45 . 18 27 60 . 93 . 121 18 48 . 114 76 12 96 84 . 82 310 Effects 1 | . . . . . . . . . . . . . . . . . . . . . . . 1 . . . . Interference 1 | . . . . . . . . . . . . . . . . . . . . . . . 1 . . . . Siege Activations . | . . . . . . . . . . . . . . . . . . . . . . . . . . . . Robots Corrupted 1 | . . . . . . . . . . . . . . . . . . . . . . . . 1 . . . Combat Hostiles 1 | . . . . . . . . . . . . . . . . . . . . . . . . 1 . . . Parts Fried 6 | . . . 1 . . . . . . . . . . . . . 5 . . . . . . . . . . Impact Corruptions 9 | . . . . . . . . . . . . . . . . . 4 5 . . . . . . . . . Robots Melted . | . . . . . . . . . . . . . . . . . . . . . . . . . . . . Combat Hostiles . | . . . . . . . . . . . . . . . . . . . . . . . . . . . . Parts Melted 15 | . 15 . . . . . . . . . . . . . . . . . . . . . . . . . . Heat Transferred 3314 | 200 2903 . . . . . . . . . . . . . . . . . . 100 . . 111 . . . . Parts Sabotaged 4 | . . . . . . . . . . . . . . . . 2 . 2 . . . . . . . . . Parts Stolen . | . . . . . . . . . . . . . . . . . . . . . . . . . . . . Parts Stripped . | . . . . . . . . . . . . . . . . . . . . . . . . . . . . Power Chain Reactions 1 | . . . . . . . . . . . . . . . . 1 . . . . . . . . . . . Missiles Intercepted . | . . . . . . . . . . . . . . . . . . . . . . . . . . . . Alert | -11 -10 -10 -9 -9 -9 -8 -8 -8 -8 -8 -7 -7 -6 -6 -5 -5 -4 -4 -4 -4 -4 -4 -4 -4 -3 -3 -3 ------- Run | Scr Mat Min Mat Min Exi Min Mat Gar Mat Gar Fac Gar Fac Gar Fac Gar Fac Gar Fac Ext Cet Arc Hub Gar Res Qua Sec Peak Influence 1810 | 20 364 243 347 324 . . 213 219 178 491 516 1187 1005 1810 966 733 647 566 306 353 433 168 610 741 544 435 510 Initial 949 | . 13 102 . 126 . . . 24 106 20 228 263 623 703 949 239 384 343 296 149 10 157 49 331 416 298 6 Average 305 | 10 203 66 220 179 . . 67 143 25 252 366 815 777 1341 835 485 485 409 298 113 146 155 190 517 415 129 177 Maximum Alert Level 5 | . 1 1 1 1 . . 1 1 . 2 2 4 3 5 3 3 2 2 1 1 2 . 2 3 2 2 2 Low Security (%) 47 | 100 45 99 34 48 . 100 98 71 100 28 . . . . . . . . . 72 74 100 54 . . 74 70 Level 1 29 | . 54 . 65 51 . . 1 28 . 60 68 4 . . 13 26 13 50 100 27 17 . 36 17 32 23 24 Level 2 13 | . . . . . . . . . . 10 31 27 45 . 6 68 86 49 . . 8 . 8 75 67 1 5 Level 3 5 | . . . . . . . . . . . . 60 54 13 79 4 . . . . . . . 6 . . . Level 4 3 | . . . . . . . . . . . . 6 . 64 . . . . . . . . . . . . . Level 5 1 | . . . . . . . . . . . . . . 22 . . . . . . . . . . . . . High Security . | . . . . . . . . . . . . . . . . . . . . . . . . . . . . Max Security . | . . . . . . . . . . . . . . . . . . . . . . . . . . . . Squads Dispatched 34 | . 7 . 3 . . . 1 . . . 2 . 5 . . . 1 . . . . . 2 . 4 2 7 Investigation 12 | . 5 . 1 . . . . . . . 1 . 2 . . . 1 . . . . . . . 2 . . Extermination 6 | . . . . . . . . . . . 1 . . . . . . . . . . . . . 1 2 2 Reinforcement 15 | . 2 . 2 . . . 1 . . . . . 2 . . . . . . . . . 2 . 1 . 5 Assault 1 | . . . . . . . . . . . . . 1 . . . . . . . . . . . . . . Garrison . | . . . . . . . . . . . . . . . . . . . . . . . . . . . . Intercept . | . . . . . . . . . . . . . . . . . . . . . . . . . . . . Searches Triggered 2 | . . . . . . . . . . . . . . . . . 1 . . . . . . . 1 . . Construction Impeded . | . . . . . . . . . . . . . . . . . . . . . . . . . . . . Haulers Reinforced 1 | . . . . . . . . . . . . . . . . . . . . . . . 1 . . . . Active Scanning Responses . | . . . . . . . . . . . . . . . . . . . . . . . . . . . . Cargo Convoy Interrupts . | . . . . . . . . . . . . . . . . . . . . . . . . . . . . Stealth | -11 -10 -10 -9 -9 -9 -8 -8 -8 -8 -8 -7 -7 -6 -6 -5 -5 -4 -4 -4 -4 -4 -4 -4 -4 -3 -3 -3 --------- Run | Scr Mat Min Mat Min Exi Min Mat Gar Mat Gar Fac Gar Fac Gar Fac Gar Fac Gar Fac Ext Cet Arc Hub Gar Res Qua Sec Distress Signals 34 | . 3 2 4 . . . 4 . . . 2 . 1 . . . . . . 1 1 . 1 . 2 . 13 Communications Jammed 70 | . . . . . . . . . . . . . . . . . 10 . . 3 . . 25 . . . 32 Distress Signals 70 | . . . . . . . . . . . . . . . . . 10 . . 3 . . 25 . . . 32 Times Spotted 694 | . 38 12 31 5 18 . 26 3 1 15 20 23 26 44 8 33 10 32 . 25 12 9 36 30 43 27 167 Peak Tracking Total 21 | . 4 2 5 3 12 . 5 2 . 5 5 5 8 7 7 6 4 16 . 7 5 9 11 8 12 5 21 Tactical Retreats 78 | . 2 . 3 . . . 2 . . 1 6 4 3 9 . 4 2 6 . 5 . 1 8 6 5 4 7 Traps | -11 -10 -10 -9 -9 -9 -8 -8 -8 -8 -8 -7 -7 -6 -6 -5 -5 -4 -4 -4 -4 -4 -4 -4 -4 -3 -3 -3 ------- Run | Scr Mat Min Mat Min Exi Min Mat Gar Mat Gar Fac Gar Fac Gar Fac Gar Fac Gar Fac Ext Cet Arc Hub Gar Res Qua Sec Traps Triggered 38 | . 7 . . . . . . . . 3 2 7 . 3 . 7 1 2 . 3 . . . . . . 3 Indirectly 1 | . . . . . . . . . . . . . . . . 1 . . . . . . . . . . . Trap Hack Attempts 15 | . . . . . . . . . . . . 15 . . . . . . . . . . . . . . . Triggered . | . . . . . . . . . . . . . . . . . . . . . . . . . . . . Disarmed . | . . . . . . . . . . . . . . . . . . . . . . . . . . . . Reprogrammed 2 | . . . . . . . . . . . . 2 . . . . . . . . . . . . . . . Reused 8 | . . . . . . . . . . 6 . 1 . 1 . . . . . . . . . . . . . Traps Extracted . | . . . . . . . . . . . . . . . . . . . . . . . . . . . . Installed 12 | . . . . . . . . . . 10 . 1 . 1 . . . . . . . . . . . . . Triggered 8 | . . . . . . . . . . 6 . 1 . 1 . . . . . . . . . . . . . Most Traps Carried 1 | . . . . . . . . . . 1 . 1 1 1 . . . . . . . . . . . . . Machines | -11 -10 -10 -9 -9 -9 -8 -8 -8 -8 -8 -7 -7 -6 -6 -5 -5 -4 -4 -4 -4 -4 -4 -4 -4 -3 -3 -3 ---------- Run | Scr Mat Min Mat Min Exi Min Mat Gar Mat Gar Fac Gar Fac Gar Fac Gar Fac Gar Fac Ext Cet Arc Hub Gar Res Qua Sec Machines Disabled 59 | . . 1 . . 1 . 1 2 3 7 . 8 . 3 1 4 . 3 . 2 1 . 9 1 . 7 5 Max in Single Turn 9 | . . 1 . . 1 . 1 1 1 1 . 1 . 1 1 1 . 1 . 1 . . 9 1 . 1 1 Garrison Access 3 | . . . . . . . . . . . . . . . . . . . . . . . . . 2 1 . Garrison Relay 17 | . . . . . . . . 1 . 2 . 4 . 3 . 3 . 3 . . . . . 1 . . . Network Hub 1 | . . . . . . . . . . . . . . . . . . . . . . . 1 . . . . Energy Cycler 1 | . . . . . . . . . . . . . . . . . . . . 1 . . . . . . . Machines Sabotaged . | . . . . . . . . . . . . . . . . . . . . . . . . . . . . Overloaded Fab Kills . | . . . . . . . . . . . . . . . . . . . . . . . . . . . . Hacking | -11 -10 -10 -9 -9 -9 -8 -8 -8 -8 -8 -7 -7 -6 -6 -5 -5 -4 -4 -4 -4 -4 -4 -4 -4 -3 -3 -3 --------- Run | Scr Mat Min Mat Min Exi Min Mat Gar Mat Gar Fac Gar Fac Gar Fac Gar Fac Gar Fac Ext Cet Arc Hub Gar Res Qua Sec Machines Accessed 110 | . 5 . 8 . 2 . 2 1 5 1 8 2 6 2 3 2 3 2 4 8 1 1 10 1 10 13 10 Terminals 81 | . 3 . 6 . . . 1 1 4 1 5 2 3 2 1 2 2 2 3 8 1 . 9 1 6 9 9 Fabricators 7 | . . . . . . . . . . . 2 . 2 . 1 . . . . . . . . . 2 . . Repair Stations 2 | . . . 1 . . . . . . . . . . . . . . . 1 . . . . . . . . Recycling Units 2 | . 2 . . . . . . . . . . . . . . . . . . . . . . . . . . Scanalyzers 5 | . . . 1 . . . . . . . . . . . . . . . . . . . . . . 3 1 Garrison Access 10 | . . . . . . . 1 . 1 . 1 . 1 . 1 . 1 . . . . . 1 . 2 1 . Total Hacks 340 | . 11 . 27 . 24 . 4 4 27 1 17 5 19 5 5 3 8 5 6 18 1 25 30 3 30 40 22 Successful 168 | . 4 . 13 . 24 . 3 1 14 1 5 1 6 2 2 2 4 2 . 6 1 25 18 1 9 20 4 Failed 170 | . 7 . 14 . . . 1 3 12 . 12 4 13 3 3 1 4 3 6 12 . . 11 2 21 20 18 Catastrophic 38 | . 1 . 3 . . . 1 . 2 . 4 1 5 . 2 . . 1 2 3 . . 2 . 2 3 6 Database Lockouts 2 | . . . . . . . . . 1 . . . . . . . . . . . . . 1 . . . . Manual 91 | . 3 . 12 . 1 . 2 1 12 . 5 . 9 . 3 . 6 1 . 1 1 . 15 . 4 8 7 Terminals 239 | . 9 . 18 . . . 3 4 26 1 13 5 10 5 3 3 7 5 5 18 1 . 29 3 21 31 19 Fabricators 19 | . . . . . . . . . . . 3 . 8 . 1 . . . . . . . . . 7 . . Repair Stations 8 | . . . 7 . . . . . . . . . . . . . . . 1 . . . . . . . . Recycling Units 2 | . 2 . . . . . . . . . . . . . . . . . . . . . . . . . . Scanalyzers 13 | . . . 2 . . . . . . . . . . . . . . . . . . . . . . 8 3 Garrison Access 10 | . . . . . . . 1 . 1 . 1 . 1 . 1 . 1 . . . . . 1 . 2 1 . Terminal Hacks 129 | . 2 . 6 . 24 . 2 1 12 1 2 1 3 2 1 2 1 2 . 6 1 25 15 1 4 12 3 Record 50 | . . . . . 23 . . . . . . . . . . . . . . . . 25 . . . 2 . Part Schematic 7 | . . . 2 . . . . . 1 . . . 1 . . . . . . 1 . . 2 . . . . Robot Schematic 1 | . . . . . . . . . . . 1 . . . . . . . . . . . . . . . . Robot Analysis 6 | . 1 . 2 . . . . . . . . . . . . . . . . . . . 1 . 1 1 . Prototype ID Bank 9 | . 1 . . . . . 1 . 4 . . . . . . . . . . 1 . . 2 . . . . Open Door 7 | . . . . . . . . . . . . 1 . 1 . 1 . . . 2 1 . . 1 . . . Branch Access Points 1 | . . . . . . . . . . . . . . . . . . . . . . . . . 1 . . Emergency Access Points 6 | . . . . . . . . . . 1 . . . 1 . 1 . 1 . . . . 1 . . 1 . Terminal Index 2 | . . . . . . . . . . . . . . . . . . . . . . . 1 . . . 1 Fabricator Index 1 | . . . . . . . . . . . 1 . . . . . . . . . . . . . . . . Unreport Threat 11 | . . . . . . . 1 . 1 . . . 1 . 1 . . . . 1 . . 1 . 1 3 1 Locate Traps 8 | . . . 2 . . . . . 2 . . . . . . . 1 . . . . . 1 . . 1 1 Maintenance Status 2 | . . . . . . . . . . . . . . . . . . . . . . . 1 . . 1 . Recall Reinforcements 1 | . . . . . . . . . . . . . . . . . . . . . . . . . 1 . . Hauler Manifests 2 | . . . . . . . . . 1 . . . . . . . . . . . . . 1 . . . . Registered Components 1 | . . . . . . . . . . . . . . . . . . . . . . . 1 . . . . Zone Layout 11 | . . . . . . . . . 3 . . . 1 . . . . . . 1 . . 3 . . 3 . Security Stations 2 | . . . . . . . . 1 . . . . . . . . . 1 . . . . . . . . . EX-Prototype ID Bank 1 | . . . . . 1 . . . . . . . . . . . . . . . . . . . . . . Fabricator Hacks 6 | . . . . . . . . . . . 2 . 1 . . . . . . . . . . . 3 . . Load Schematic 4 | . . . . . . . . . . . 1 . 1 . . . . . . . . . . . 2 . . Build 2 | . . . . . . . . . . . 1 . . . . . . . . . . . . . 1 . . Repair Station Hacks 5 | . . . 5 . . . . . . . . . . . . . . . . . . . . . . . . Scan Component 3 | . . . 3 . . . . . . . . . . . . . . . . . . . . . . . . Repair 2 | . . . 2 . . . . . . . . . . . . . . . . . . . . . . . . Recycling Unit Hacks . | . . . . . . . . . . . . . . . . . . . . . . . . . . . . Scanalyzer 6 | . . . 2 . . . . . . . . . . . . . . . . . . . . . . 3 1 Insert Component 5 | . . . 1 . . . . . . . . . . . . . . . . . . . . . . 3 1 Analyze 1 | . . . 1 . . . . . . . . . . . . . . . . . . . . . . . . Garrison Access Hacks 10 | . . . . . . . 1 . 1 . 1 . 1 . 1 . 1 . . . . . 1 . 2 1 . Unlock Access 7 | . . . . . . . 1 . 1 . 1 . 1 . 1 . 1 . . . . . 1 . . . . Seal Access 3 | . . . . . . . . . . . . . . . . . . . . . . . . . 2 1 . Unauthorized Hacks 12 | . 2 . . . . . . . 1 . . . 1 . . . 2 . . . . . 2 . . 4 . Terminals 9 | . . . . . . . . . 1 . . . . . . . 2 . . . . . 2 . . 4 . Track 3 | . . . . . . . . . . . . . . . . . . . . . . . 2 . . 1 . Assimilate 6 | . . . . . . . . . 1 . . . . . . . 2 . . . . . . . . 3 . Fabricators 1 | . . . . . . . . . . . . . 1 . . . . . . . . . . . . . . Liberate 1 | . . . . . . . . . . . . . 1 . . . . . . . . . . . . . . Repair Stations . | . . . . . . . . . . . . . . . . . . . . . . . . . . . . Recycling Units 2 | . 2 . . . . . . . . . . . . . . . . . . . . . . . . . . Tunnel 2 | . 2 . . . . . . . . . . . . . . . . . . . . . . . . . . Scanalyzers . | . . . . . . . . . . . . . . . . . . . . . . . . . . . . Garrison Access . | . . . . . . . . . . . . . . . . . . . . . . . . . . . . Data Cores Recovered . | . . . . . . . . . . . . . . . . . . . . . . . . . . . . Used . | . . . . . . . . . . . . . . . . . . . . . . . . . . . . Hacking Detections 80 | . 3 . 7 . . . 1 1 3 . 7 1 5 2 2 1 2 2 4 6 . . 6 . 8 9 10 Full Trace Events 8 | . . . 1 . . . . . . . 1 . 2 . . 1 1 . . . . . . . 2 . . Feedback Events . | . . . . . . . . . . . . . . . . . . . . . . . . . . . . Feedback Blocked . | . . . . . . . . . . . . . . . . . . . . . . . . . . . . Robot Schematics Acquired 1 | . . . . . . . . . . . 1 . . . . . . . . . . . . . . . . Robots Built . | . . . . . . . . . . . . . . . . . . . . . . . . . . . . Authchips . | . . . . . . . . . . . . . . . . . . . . . . . . . . . . Time . | . . . . . . . . . . . . . . . . . . . . . . . . . . . . Total Robot Build Rating . | . . . . . . . . . . . . . . . . . . . . . . . . . . . . Part Schematics Acquired 8 | . . . 3 . . . . . 1 . . . 1 . . . . . . 1 . . 2 . . . . Parts Built 3 | . . . . . . . . . . . 2 . . . . . . . . . . . . . 1 . . Authchips . | . . . . . . . . . . . . . . . . . . . . . . . . . . . . Time 149 | . . . . . . . . . . . 73 . . . . . . . . . . . . . 76 . . Total Part Build Rating 11 | . . . . . . . . . . . 6 . . . . . . . . . . . . . 5 . . Parts Repaired 2 | . . . 2 . . . . . . . . . . . . . . . . . . . . . . . . Time 70 | . . . 70 . . . . . . . . . . . . . . . . . . . . . . . . Parts Recycled . | . . . . . . . . . . . . . . . . . . . . . . . . . . . . Recycled Matter . | . . . . . . . . . . . . . . . . . . . . . . . . . . . . Retrieved Matter . | . . . . . . . . . . . . . . . . . . . . . . . . . . . . Retrieved Components . | . . . . . . . . . . . . . . . . . . . . . . . . . . . . Parts Scanalyzed 1 | . . . 1 . . . . . . . . . . . . . . . . . . . . . . . . Part Schematics Acquired 1 | . . . 1 . . . . . . . . . . . . . . . . . . . . . . . . Parts Damaged . | . . . . . . . . . . . . . . . . . . . . . . . . . . . . Bothacking | -11 -10 -10 -9 -9 -9 -8 -8 -8 -8 -8 -7 -7 -6 -6 -5 -5 -4 -4 -4 -4 -4 -4 -4 -4 -3 -3 -3 ------------ Run | Scr Mat Min Mat Min Exi Min Mat Gar Mat Gar Fac Gar Fac Gar Fac Gar Fac Gar Fac Ext Cet Arc Hub Gar Res Qua Sec Used RIF Installer 9 | . . . . . . . . 1 . 2 . 1 . 1 . 1 . 1 . . . . . 2 . . . Hotswap 1 | . . . . . . . . . . . . . . . . . . . . . . . . 1 . . . Threat Obfuscator 1 | . . . . . . . . . . . . . . . . 1 . . . . . . . . . . . Zone Cloak 2 | . . . . . . . . . . . . 1 . . . . . . . . . . . 1 . . . Patrol Navigation 1 | . . . . . . . . . . 1 . . . . . . . . . . . . . . . . . Structural Interface 1 | . . . . . . . . . . 1 . . . . . . . . . . . . . . . . . Autooverride 1 | . . . . . . . . . . . . . . . . . . 1 . . . . . . . . . Autoassimilate 1 | . . . . . . . . . . . . . . 1 . . . . . . . . . . . . . Robots Hacked 52 | . . . . . . . . 1 . 1 1 4 . 8 1 11 . 9 . 5 . 1 3 1 3 2 1 Non-combat 1 | . . . . . . . . . . . . . . . 1 . . . . . . . . . . . . Combat 51 | . . . . . . . . 1 . 1 1 4 . 8 . 11 . 9 . 5 . 1 3 1 3 2 1 Autooverrided 5 | . . . . . . . . . . . . . . . . . . 1 . 1 . . 1 1 1 . . Autoassimilated 12 | . . . . . . . . . . . . . . 1 . 1 . 1 . 3 . 1 2 . 2 . 1 Robot Hacks Applied 37 | . . . . . . . . 1 . 1 1 4 . 7 3 10 . 7 . 1 . . . . . 2 . parse_system 2 | . . . . . . . . . . . . . . 1 . . . 1 . . . . . . . . . purge_threat 3 | . . . . . . . . . . . . . . . 3 . . . . . . . . . . . . amplify_resonance 3 | . . . . . . . . . . . 1 . . . . 1 . 1 . . . . . . . . . wipe_record 2 | . . . . . . . . . . . . . . . . . . . . . . . . . . 2 . disable_weapons 1 | . . . . . . . . . . . . 1 . . . . . . . . . . . . . . . reboot_system 1 | . . . . . . . . . . . . . . . . 1 . . . . . . . . . . . formatsys_high 25 | . . . . . . . . 1 . 1 . 3 . 6 . 8 . 5 . 1 . . . . . . . Relay Couplers Released 70 | . . . . . . . . 3 . 7 . 17 . 11 . 13 . 14 . . . . . 5 . . . Machine Destruction 70 | . . . . . . . . 3 . 7 . 17 . 11 . 13 . 14 . . . . . 5 . . . Attached 31 | . . . . . . . . 2 . 1 1 3 . 4 1 11 . 3 . . . . . 5 . . . Fabnet Peak Effective % . | . . . . . . . . . . . . . . . . . . . . . . . . . . . . Robots Rewired 24 | . . . . . . . . . . 2 . 3 . 6 . . . . . 11 . . . 2 . . . Allies Hacked 1 | . . . . . . . . . . . . . . . . . . . . . . . . 1 . . . Hacks Repelled . | . . . . . . . . . . . . . . . . . . . . . . . . . . . . Allies | -11 -10 -10 -9 -9 -9 -8 -8 -8 -8 -8 -7 -7 -6 -6 -5 -5 -4 -4 -4 -4 -4 -4 -4 -4 -3 -3 -3 -------- Run | Scr Mat Min Mat Min Exi Min Mat Gar Mat Gar Fac Gar Fac Gar Fac Gar Fac Gar Fac Ext Cet Arc Hub Gar Res Qua Sec Total Allies 93 | . . 3 . 1 . . . 1 . 3 . 10 . 15 . 13 2 9 . 20 3 1 3 3 3 2 1 Largest Group 11 | . . 3 1 1 . . . 1 . 3 . 5 . 8 6 4 2 4 . 11 5 3 1 3 1 2 1 Highest-Rated Group 473 | . . 40 16 31 . . . 21 . 96 . 205 . 301 243 215 20 156 . 473 452 274 47 124 64 36 64 Highest-Rated Ally 159 | . . 16 16 31 . . . 21 . 40 . 95 . 62 62 95 10 62 . 159 159 140 47 49 64 26 64 Total Orders 5 | . . . . . . . . . . . . . . . . . . . . 3 . . . . . 2 . STAY 4 | . . . . . . . . . . . . . . . . . . . . 2 . . . . . 2 . FOLLOW 1 | . . . . . . . . . . . . . . . . . . . . 1 . . . . . . . Ally Attacks 441 | . . 16 6 3 . . . 5 . 13 . 55 . 89 1 49 . 19 . 94 51 9 5 16 9 . 1 Total Damage 12193 | . . 156 65 22 . . . 83 . 191 . 1956 . 1831 65 1180 . 674 . 2842 1817 325 89 506 354 . 37 Kills 78 | . . 3 2 . . . . 1 . 4 . 20 . 15 . 5 . 2 . 10 7 1 1 2 5 . . Allies Corrupted . | . . . . . . . . . . . . . . . . . . . . . . . . . . . . Allies Melted 2 | . . . . . . . . . . . . . . 1 . . . . . 1 . . . . . . . Intel | -11 -10 -10 -9 -9 -9 -8 -8 -8 -8 -8 -7 -7 -6 -6 -5 -5 -4 -4 -4 -4 -4 -4 -4 -4 -3 -3 -3 ------- Run | Scr Mat Min Mat Min Exi Min Mat Gar Mat Gar Fac Gar Fac Gar Fac Gar Fac Gar Fac Ext Cet Arc Hub Gar Res Qua Sec Robot Analysis Total 6 | . 1 . 2 . . . . . . . . . . . . . . . . . . . 1 . 1 1 . Derelict Logs Recovered 2 | . . . . 2 . . . . . . . . . . . . . . . . . . . . . . . Drone Launches . | . . . . . . . . . . . . . . . . . . . . . . . . . . . . Drone Recoveries . | . . . . . . . . . . . . . . . . . . . . . . . . . . . . Exploration | -11 -10 -10 -9 -9 -9 -8 -8 -8 -8 -8 -7 -7 -6 -6 -5 -5 -4 -4 -4 -4 -4 -4 -4 -4 -3 -3 -3 ------------- Run | Scr Mat Min Mat Min Exi Min Mat Gar Mat Gar Fac Gar Fac Gar Fac Gar Fac Gar Fac Ext Cet Arc Hub Gar Res Qua Sec Turns Passed 20186 | 153 1821 1423 1596 776 994 185 568 408 897 866 455 872 370 1004 109 955 266 252 180 1227 194 43 806 339 685 1290 1452 Spaces Moved 20684 | 104 810 538 730 470 565 112 285 390 453 1338 971 1064 780 1188 179 1374 646 554 492 1367 209 83 1163 418 1490 1438 1473 Core 40 | 4 . . . . . . 5 . . . . . . . . . . . . . 2 . 6 . . . 23 Treads 3020 | . 536 538 730 470 565 112 69 . . . . . . . . . . . . . . . . . . . . Legs 9 | . . . . . . . 9 . . . . . . . . . . . . . . . . . . . . Wheels 444 | 100 274 . . . . . 27 . . . . . . . . . . . . . . . 43 . . . . Hover 549 | . . . . . . . . . . . . . . . . . . . . . . . 528 21 . . . Flight 16580 | . . . . . . . 175 390 453 1338 971 1064 780 1188 179 1374 646 554 492 1367 207 83 586 397 1490 1438 1408 Fastest Speed 15 | 50 100 240 160 160 160 160 31 31 31 31 28 42 35 35 35 20 20 28 28 28 31 35 28 20 15 22 24 Average Speed 55 | 98 172 240 160 160 160 160 83 31 31 31 35 42 36 35 35 30 23 28 28 30 34 35 42 28 22 29 30 Slowest Speed 330 | 100 240 240 240 160 160 160 330 31 101 31 42 42 37 35 35 35 28 28 28 31 150 35 200 280 29 35 110 Overloaded Moves 216 | . . . . . . . . . . . . . . . . . . . . . . . . . 186 26 4 Propulsion Burnouts 1 | . . . . . . . . . . . . . . . . . . . . . . . . . . . 1 Robots Hopped 97 | . . . . . . . 1 . 4 . 2 . 1 . . 4 1 8 1 23 1 . 1 4 35 1 10 Cave-ins Triggered 1 | . . . . . . . . . . . . . . . . . . . . . . . 1 . . . . Teleports 1 | . . . . . . . . . . . . . . . . . . . . . . . . . . . 1 Spacefolds 18 | . . . . . . . . . . . . . . . . . . . . . . . . . . . 18 Exploration Rate (%) 55 | 5 96 84 69 96 71 39 25 33 15 52 24 89 30 84 7 91 21 58 11 88 81 84 74 46 44 87 59 Regions Visited 27 Branch Regions 10 Pre-discovered Areas 4 | . 2 1 . . 1 . . . . . . . . . . . . . . . . . . . . . . Known Exits Taken 9 | . . . . . . . 1 . 1 . 1 . 1 . 1 . 1 . . . . . 1 . 1 1 . Unknown Exits Taken 11 | 1 1 1 1 1 1 1 . . . . . . . . . . . . 1 1 1 1 . . . . . Scrap Searched 5 | . . 1 . 4 . . . . . . . . . . . . . . . . . . . . . . . Spaces Dug 226 | . . 9 . 28 . . 36 2 9 . 10 . 8 6 4 5 8 2 5 8 . . 19 3 18 11 35 Terrain Destroyed 453 | . 32 31 . 28 15 . 36 2 9 . 10 . 8 6 4 9 8 2 5 15 . . 166 3 18 11 35 Melee 115 | . . . . . . . 1 2 5 . 10 . 8 6 4 5 8 2 5 . . . 15 3 18 11 12 Projectile 47 | . . . . . . . . . 4 . . . . . . . . . . 15 . . 5 . . . 23 AOE 291 | . 32 31 . 28 15 . 35 . . . . . . . . 4 . . . . . . 146 . . . . Terrain Rammed . | . . . . . . . . . . . . . . . . . . . . . . . . . . . . Walls Destroyed . | . . . . . . . . . . . . . . . . . . . . . . . . . . . . Machines Disabled . | . . . . . . . . . . . . . . . . . . . . . . . . . . . . Actions | -11 -10 -10 -9 -9 -9 -8 -8 -8 -8 -8 -7 -7 -6 -6 -5 -5 -4 -4 -4 -4 -4 -4 -4 -4 -3 -3 -3 --------- Run | Scr Mat Min Mat Min Exi Min Mat Gar Mat Gar Fac Gar Fac Gar Fac Gar Fac Gar Fac Ext Cet Arc Hub Gar Res Qua Sec Total 27897 | 131 1061 642 999 487 632 118 468 664 1191 1770 1064 1458 842 1728 218 1810 734 627 523 2107 314 90 1387 558 1773 2192 2309 Wait 5092 | 1 98 73 88 8 . 7 55 251 728 335 36 258 18 431 30 239 33 28 19 599 48 . 100 37 243 611 718 Move 20461 | 103 809 537 729 469 564 111 283 389 447 1337 967 1063 777 1186 179 1368 643 540 489 1324 206 82 1161 409 1424 1435 1430 Hop 78 | . . . . . . . 1 . 2 . 2 . 1 . . 1 1 5 1 18 1 . 1 4 30 1 9 Pick Up 207 | 9 22 4 31 . 15 . 14 3 . 9 8 10 9 7 . 15 3 8 1 5 2 . 11 2 8 8 3 Fast Attach 213 | 6 6 . 7 . 2 . 12 1 . 1 7 5 . 3 . 31 15 4 2 5 5 4 17 17 15 24 24 Attach 83 | 1 3 1 4 . 11 . 10 2 . . 3 2 2 5 1 10 . 4 . 1 1 . 5 7 . 4 6 Detach 31 | . . . . . 2 . 1 . . . 3 . . 1 . 1 . 1 . . 1 . 6 7 1 2 5 Swap 130 | 1 11 4 12 5 4 . 5 2 2 2 7 8 5 13 . 4 2 4 2 15 1 . 7 9 2 2 1 Drop 296 | . 16 5 33 1 13 . 9 3 . 10 9 14 7 7 . 30 17 6 4 8 10 1 16 10 22 27 18 Fire 450 | 10 92 17 90 4 21 . 74 2 4 1 2 12 . 16 3 17 . 11 . 30 . . 12 6 . 2 24 Melee 566 | . . . . . . . 4 11 8 29 20 26 22 42 5 66 12 12 5 10 39 3 49 45 27 76 55 Ram 2 | . . . . . . . . . . . . . . . . . . . . . . . 2 . . . . Kick . | . . . . . . . . . . . . . . . . . . . . . . . . . . . . Crush 10 | . 4 1 5 . . . . . . . . . . . . . . . . . . . . . . . . Escape Stasis 176 | . . . . . . . . . . 36 . 44 1 15 . 27 8 4 . 25 . . . . . . 16 Rewire 75 | . . . . . . . . . . . . . . 1 . 1 . . . 67 . . . 5 1 . . Trap 27 | . . . . . . . . . . 10 . 16 . 1 . . . . . . . . . . . . . Miscellaneous . | . . . . . . . . . . . . . . . . . . . . . . . . . . . . Route ------- -11/Scrapyard -10/Materials (discovered 5 exits: *Mat x3 / [*Min x2]) -10/Mines (discovered 2 exits: *Mat x2) -9/Materials (discovered 3 exits: *Mat / [*Min x2]) -9/Mines (discovered 3 exits: *Mat x2 / *Exi) -9/Exiles -8/Mines -8/Materials -8/Garrison -8/Materials -8/Garrison -7/Factory -7/Garrison (discovered 3 exits: *Fac x2 / [*Fac]) -6/Factory -6/Garrison (discovered 3 exits: *Fac x3) -5/Factory -5/Garrison (discovered 3 exits: *Fac x3) -4/Factory (discovered 4 exits: *Res x2 / *Ext / Gar) -4/Garrison (discovered 2 exits: *Fac x2) -4/Factory -4/Extension (discovered 3 exits: *Res x2 / *Cet) -4/Cetus (discovered 2 exits: *Res / *Arc) -4/Archives (discovered 3 exits: *Res / *Hub x2) -4/Hub_04(d) (discovered 4 exits: *Res x3 / Gar) -4/Garrison -3/Research (discovered 3 exits: [*Res] / *Qua x2) -3/Quarantine (discovered 2 exits: [*Res] / *Sec) -3/Section 7 (discovered 1 exit: [*Res]) History --------- Turn | Location | Event 16 | -11/Scrapyard | Discovered new exit (range 16) 154 | -11/Scrapyard | Entered Materials 332 | -10/Materials | Build established: Mutant 390 | -10/Materials | Discovered new exit (range 6) 418 | -10/Materials | Discovered new exit (range 15) 622 | -10/Materials | Lost 3 parts (1p1n1w) 652 | -10/Materials | Discovered new exit (range 4) 776 | -10/Materials | Discovered new exit (range 13) 1627 | -10/Materials | Discovered new exit (range 16) 1975 | -10/Materials | Entered Mines 1978 | -10/Mines | Met a Derelict bent on vengeance 2102 | -10/Mines | Assembled infested the area 2359 | -10/Mines | Core integrity fell below 50% 2467 | -10/Mines | Discovered new exit (range 3) 2475 | -10/Mines | Assisted by bots powering up and referring to "LRC-V3" 2511 | -10/Mines | Discovered new exit (range 6) 3092 | -10/Mines | Learned location of Storage (-7) 3398 | -10/Mines | Entered Materials 3398 | -9/Materials | Accompanied by 1 ally 3398 | -9/Materials | Evolved 2 slots: Propulsion x1, Utility x1 3563 | -9/Materials | Repaired Lgt. Treads 3609 | -9/Materials | Repaired Broken Hvy. Assault Rifle? 3636 | -9/Materials | Discovered new exit (range 11) 3705 | -9/Materials | Build established: Scavenger-Mutant 3734 | -9/Materials | Discovered new exit (range 16) 4310 | -9/Materials | Discovered new exit (range 15) 4994 | -9/Materials | Entered Mines 5161 | -9/Mines | Learned Materials terminal intel 5236 | -9/Mines | Received a Mining Laser from a helpful Derelict 5292 | -9/Mines | Discovered new exit (range 12) 5620 | -9/Mines | Learned Materials garrison access intel 5631 | -9/Mines | Discovered new exit (range 6) 5764 | -9/Mines | Deemed a non-threat by the Exiles lab entrance 5764 | -9/Mines | Discovered new exit (range 5) 5770 | -9/Mines | Entered Exiles 5809 | -9/Exiles | Met 8R-AWN 5833 | -9/Exiles | Met EX-HEX 5911 | -9/Exiles | Met EX-DEC 5972 | -9/Exiles | Discovered new exit (range 11) 6309 | -9/Exiles | Learned location of Zion (-6) 6337 | -9/Exiles | Met EX-BIN 6359 | -9/Exiles | Aligned with FarCom system 6361 | -9/Exiles | Given EX-Vault access code 6399 | -9/Exiles | Opened EX-Vault 6413 | -9/Exiles | Found Flying Fortress v7 6446 | -9/Exiles | Warned to stay clear of 0b10 Research branches 6465 | -9/Exiles | Exiles lab attacked by MAIN.C 6526 | -9/Exiles | Found Longsword +1 6528 | -9/Exiles | Found Superbattery 6627 | -9/Exiles | Core integrity fell below 50% 6679 | -9/Exiles | Destroyed 19 combat bots 6699 | -9/Exiles | Lost 9 parts (1p4n1u3w) 6764 | -9/Exiles | Stole three prototypes: Flying Fortress v7, Superbattery, Longsword +1 6764 | -9/Exiles | Entered Mines 6938 | -8/Mines | Discovered new exit (range 8) 6949 | -8/Mines | Entered Materials 6949 | -8/Materials | Evolved 2 slots: Propulsion x1, Utility x1 6950 | -8/Materials | Loaded intel: 11 terminal locations 6951 | -8/Materials | Loaded intel: 1 garrison access location 7236 | -8/Materials | Lost 3 parts (1p1n1w) 7339 | -8/Materials | Lost 5 parts (1p2n2w) 7517 | -8/Materials | Identified exit to Garrison 7517 | -8/Materials | Entered Garrison 7523 | -8/Garrison | Learned Materials security intel 7533 | -8/Garrison | Installed Relay Interface Framework 7540 | -8/Garrison | Triggered checkpoint 7542 | -8/Garrison | Core integrity fell below 50% 7547 | -8/Garrison | Garrison Relay disabled 7745 | -8/Garrison | Triggered checkpoint 7768 | -8/Garrison | Build established: Hacker-Sprinter 7920 | -8/Garrison | Discovered new exit (range 12) 7925 | -8/Garrison | Entered Materials 7992 | -8/Materials | Central database locked down 8822 | -8/Materials | Identified exit to Garrison 8822 | -8/Materials | Entered Garrison 8853 | -8/Garrison | Garrison Relay disabled 8940 | -8/Garrison | Triggered checkpoint 9130 | -8/Garrison | Triggered checkpoint 9326 | -8/Garrison | Triggered checkpoint 9448 | -8/Garrison | Garrison Relay disabled 9590 | -8/Garrison | Triggered checkpoint 9608 | -8/Garrison | Triggered checkpoint 9615 | -8/Garrison | Discovered new exit (range 13) 9617 | -8/Garrison | Expanded RIF knowledge: Structural Interface 9674 | -8/Garrison | Expanded RIF knowledge: Patrol Navigation 9688 | -8/Garrison | Entered Factory 9688 | -7/Factory | Evolved 2 slots: Propulsion x1, Utility x1 9690 | -7/Factory | FarCom data flow suspended 10089 | -7/Factory | Fabricated Trap Scanner (x2) 10143 | -7/Factory | Identified exit to Garrison 10143 | -7/Factory | Entered Garrison 10149 | -7/Garrison | Build established: Hacker-Mutant 10169 | -7/Garrison | Garrison Relay disabled 10209 | -7/Garrison | Found embedded Infiltrators 10210 | -7/Garrison | Triggered checkpoint 10334 | -7/Garrison | Triggered checkpoint 10368 | -7/Garrison | Triggered checkpoint 10397 | -7/Garrison | Discovered new exit (range 19) 10406 | -7/Garrison | Expanded RIF knowledge: Zone Cloak 10416 | -7/Garrison | Triggered checkpoint 10434 | -7/Garrison | Garrison Relay disabled 10440 | -7/Garrison | Triggered checkpoint 10457 | -7/Garrison | Discovered new exit (range 5) 10502 | -7/Garrison | Build established: Mutant 10546 | -7/Garrison | Triggered checkpoint 10556 | -7/Garrison | Triggered checkpoint 10591 | -7/Garrison | Garrison Relay disabled 10864 | -7/Garrison | Rescued a captive Derelict 10864 | -7/Garrison | Rescued a captive Derelict 10866 | -7/Garrison | Triggered checkpoint 10893 | -7/Garrison | Garrison Relay disabled 10932 | -7/Garrison | Triggered checkpoint 11009 | -7/Garrison | Discovered new exit (range 17) 11015 | -7/Garrison | Entered Factory 11015 | -6/Factory | Evolved 2 slots: Propulsion x1, Utility x1 11365 | -6/Factory | First assault squad dispatched 11385 | -6/Factory | Identified exit to Garrison 11385 | -6/Factory | Entered Garrison 11396 | -6/Garrison | Triggered checkpoint 11420 | -6/Garrison | Triggered checkpoint 11451 | -6/Garrison | Garrison Relay disabled 11513 | -6/Garrison | Spotted B-75 Beast 11757 | -6/Garrison | Garrison Relay disabled 11770 | -6/Garrison | Discovered new exit (range 15) 11781 | -6/Garrison | Spotted Executioner 12079 | -6/Garrison | Triggered checkpoint 12115 | -6/Garrison | Discovered new exit (range 11) 12133 | -6/Garrison | Expanded RIF knowledge: Autoassimilate 12150 | -6/Garrison | Triggered checkpoint 12152 | -6/Garrison | Garrison Relay disabled 12154 | -6/Garrison | Triggered checkpoint 12177 | -6/Garrison | Found embedded Infiltrators 12300 | -6/Garrison | Triggered checkpoint 12312 | -6/Garrison | Destroyed B-75 Beast 12332 | -6/Garrison | Discovered new exit (range 12) 12389 | -6/Garrison | Entered Factory 12389 | -5/Factory | Accompanied by 6 allies 12389 | -5/Factory | Evolved 2 slots: Utility x2 12431 | -5/Factory | Build established: Bothacker-Mutant 12481 | -5/Factory | Spotted B-75 Beast 12498 | -5/Factory | Identified exit to Garrison 12498 | -5/Factory | Entered Garrison 12755 | -5/Garrison | Garrison Relay disabled 12762 | -5/Garrison | Found embedded Infiltrators 12764 | -5/Garrison | Triggered checkpoint 12778 | -5/Garrison | Build established: Mutant 12842 | -5/Garrison | Rescued a captive Derelict 12843 | -5/Garrison | Rescued a captive Derelict 12978 | -5/Garrison | Triggered checkpoint 13138 | -5/Garrison | Triggered checkpoint 13154 | -5/Garrison | Garrison Relay disabled 13176 | -5/Garrison | Triggered checkpoint 13251 | -5/Garrison | Discovered new exit (range 8) 13306 | -5/Garrison | Triggered checkpoint 13322 | -5/Garrison | Discovered new exit (range 14) 13348 | -5/Garrison | Lost 6 parts (1p3n2w) 13354 | -5/Garrison | System corruption reached 10% 13413 | -5/Garrison | Garrison Relay disabled 13425 | -5/Garrison | Discovered new exit (range 10) 13427 | -5/Garrison | Expanded RIF knowledge: Threat Obfuscation 13432 | -5/Garrison | Spotted Executioner 13432 | -5/Garrison | Spotted Executioner 13453 | -5/Garrison | Entered Factory 13453 | -4/Factory | Evolved 2 slots: Utility x2 13470 | -4/Factory | Discovered new exit (range 9) 13485 | -4/Factory | Spotted B-86 Titan 13538 | -4/Factory | Discovered new exit (range 15) 13683 | -4/Factory | Discovered new exit (range 22) 13703 | -4/Factory | Search patrols dispatched 13713 | -4/Factory | Identified exit to Garrison 13719 | -4/Factory | Entered Garrison 13726 | -4/Garrison | Triggered checkpoint 13752 | -4/Garrison | Spotted B-86 Titan 13787 | -4/Garrison | Learned Factory security intel 13821 | -4/Garrison | Discovered new exit (range 10) 13830 | -4/Garrison | Build established: Bothacker-Sprinter 13844 | -4/Garrison | Garrison Relay disabled 13852 | -4/Garrison | Garrison Relay disabled 13920 | -4/Garrison | Found embedded Infiltrators 13929 | -4/Garrison | Discovered new exit (range 13) 13941 | -4/Garrison | Lost 3 parts (2u1w) 13947 | -4/Garrison | Expanded RIF knowledge: Autooverride 13949 | -4/Garrison | Garrison Relay disabled 13952 | -4/Garrison | Triggered checkpoint 13971 | -4/Garrison | Entered Factory 14148 | -4/Factory | Discovered new exit (range 13) 14151 | -4/Factory | Entered Extension 14787 | -4/Extension | Build established: Commander-Sprinter 14887 | -4/Extension | Spotted B-86 Titan 14920 | -4/Extension | Spotted B-86 Titan 15191 | -4/Extension | Energy Cycler disabled 15191 | -4/Extension | Rescued a captive Derelict 15191 | -4/Extension | Rescued a captive Derelict 15195 | -4/Extension | Rescued a captive Derelict 15199 | -4/Extension | Discovered new exit (range 19) 15205 | -4/Extension | Rescued A7 15249 | -4/Extension | Build established: Sprinter 15353 | -4/Extension | Discovered new exit (range 10) 15353 | -4/Extension | Discovered new exit (range 6) 15378 | -4/Extension | Entered Cetus 15378 | -4/Cetus | Accompanied by 3 allies (A7) 15383 | -4/Cetus | Acquired a Cetus Manufacturing Module code from A7 15392 | -4/Cetus | Spotted Cetus Guard 15392 | -4/Cetus | Spotted Cetus Guard 15394 | -4/Cetus | Spotted Cetus Guard 15395 | -4/Cetus | Spotted Cetus Guard 15418 | -4/Cetus | Allies destroyed Cetus Guard 15423 | -4/Cetus | Destroyed Cetus Guard 15426 | -4/Cetus | Destroyed Cetus Guard 15459 | -4/Cetus | Started Cetus Manufacturing Module 15462 | -4/Cetus | Discovered new exit (range 21) 15472 | -4/Cetus | Spotted Cetus Guard 15472 | -4/Cetus | Spotted Cetus Guard 15472 | -4/Cetus | Spotted Cetus Guard 15472 | -4/Cetus | Spotted Cetus Guard 15480 | -4/Cetus | Discovered new exit (range 22) 15484 | -4/Cetus | Manufactured an Enhanced Grunt 15486 | -4/Cetus | Destroyed Cetus Guard 15498 | -4/Cetus | Allies destroyed Cetus Guard 15502 | -4/Cetus | Destroyed Cetus Guard 15507 | -4/Cetus | Allies destroyed Cetus Guard 15509 | -4/Cetus | Manufactured an Enhanced Grunt 15509 | -4/Cetus | Met Revision 17 15534 | -4/Cetus | Manufactured an Enhanced Grunt 15546 | -4/Cetus | Cetus Manufacturing Module disabled 15567 | -4/Cetus | Lost 4 parts (3n1u) 15572 | -4/Cetus | Entered Archives 15572 | -4/Archives | Accompanied by 3 allies (A7) 15577 | -4/Archives | Met Zhirov 15578 | -4/Archives | Unable to access archive contents 15580 | -4/Archives | Discovered new exit (range 17) 15583 | -4/Archives | Reinforcements dispatched to Archives 15587 | -4/Archives | Unable to access archive contents 15588 | -4/Archives | Discovered new exit (range 17) 15590 | -4/Archives | Read partially decrypted archive contents 15600 | -4/Archives | Discovered new exit (range 17) 15602 | -4/Archives | Unable to access archive contents 15612 | -4/Archives | Zhirov warped through subspace 15615 | -4/Archives | Entered Hub_04(d) 15740 | -4/Hub_04(d) | Spotted B-86 Titan 15752 | -4/Hub_04(d) | Discovered new exit (range 20) 15761 | -4/Hub_04(d) | Central database locked down 15836 | -4/Hub_04(d) | Discovered new exit (range 3) 15883 | -4/Hub_04(d) | Core integrity fell below 50% 16159 | -4/Hub_04(d) | Discovered new exit (range 6) 16260 | -4/Hub_04(d) | Crushed by falling debris 16291 | -4/Hub_04(d) | Lost 3 parts (1n2u) 16354 | -4/Hub_04(d) | Network Hub disabled 16382 | -4/Hub_04(d) | Spotted Lightning 16384 | -4/Hub_04(d) | Spotted Lightning 16421 | -4/Hub_04(d) | Identified exit to Garrison 16421 | -4/Hub_04(d) | Entered Garrison 16430 | -4/Garrison | Triggered checkpoint 16482 | -4/Garrison | Garrison Relay disabled 16523 | -4/Garrison | Core integrity fell below 20% 16586 | -4/Garrison | Expanded RIF knowledge: Hotswap 16592 | -4/Garrison | System corruption reached 10% 16600 | -4/Garrison | Expanded RIF knowledge: Zone Cloak 16635 | -4/Garrison | Spotted B-86 Titan 16636 | -4/Garrison | Triggered checkpoint 16717 | -4/Garrison | Discovered new exit (range 13) 16760 | -4/Garrison | Entered Research 16760 | -3/Research | Accompanied by 1 ally 16760 | -3/Research | Evolved 2 slots: Utility x2 16771 | -3/Research | Found Unknown Device 16771 | -3/Research | Identified Quantum Capacitor 16864 | -3/Research | Fabricated Biomechanical Wings? 17010 | -3/Research | Search patrols dispatched 17065 | -3/Research | Spotted B-86 Titan 17077 | -3/Research | Identified exit to Quarantine 17439 | -3/Research | Discovered new exit (range 4) 17445 | -3/Research | Entered Quarantine 17456 | -3/Quarantine | Spotted Alpha 7 17484 | -3/Quarantine | Cryocooling Duct disabled 17499 | -3/Quarantine | Ambient heat levels rising (+20) 17499 | -3/Quarantine | Non-combat units ordered to evacuate 17506 | -3/Quarantine | Found Alien Artifact 17506 | -3/Quarantine | Identified Subatomic Replicator 17636 | -3/Quarantine | Build established: Botlord-Scout 17666 | -3/Quarantine | Found Alien Artifact 17694 | -3/Quarantine | Identified Core Reset Matrix 17782 | -3/Quarantine | Found Alien Impact Weapon 17782 | -3/Quarantine | Identified Core Stripper 17835 | -3/Quarantine | Discovered new exit (range 22) 17850 | -3/Quarantine | Found Alien Artifact 17915 | -3/Quarantine | Identified Phase Redirector 18018 | -3/Quarantine | Lost 3 parts (1p1n1w) 18393 | -3/Quarantine | Found Alien Slashing Weapon 18393 | -3/Quarantine | Identified Sigix Broadsword 18615 | -3/Quarantine | Found Alien Artifact 18621 | -3/Quarantine | Identified Hpw. Transdimensional Reconstructor 18629 | -3/Quarantine | Spotted Fortress 18648 | -3/Quarantine | Discovered new exit (range 5) 18649 | -3/Quarantine | Identified exit to Section 7 18735 | -3/Quarantine | Entered Section 7 19129 | -3/Section 7 | Spotted S7 Guard 19135 | -3/Section 7 | Found Alien Artifact 19143 | -3/Section 7 | Identified Navigation Efficiency Matrix 19150 | -3/Section 7 | Installed Navigation Efficiency Matrix, process failed with unexpected side effects 19187 | -3/Section 7 | Spotted B-86 Titan 19425 | -3/Section 7 | Build established: Ninja 19593 | -3/Section 7 | Discovered new exit (range 8) 19594 | -3/Section 7 | Spotted S7 Guard 19645 | -3/Section 7 | Found Alien Artifact 19645 | -3/Section 7 | Identified Spacefold Activator 19647 | -3/Section 7 | Core integrity fell below 50% 19666 | -3/Section 7 | Spotted Alpha 7 19722 | -3/Section 7 | P-80 Master assimilated allied Warden 8c 19795 | -3/Section 7 | Spotted S7 Guard 19811 | -3/Section 7 | Spotted S7 Guard 19858 | -3/Section 7 | Found Alien Artifact 19858 | -3/Section 7 | Identified Core Physics Calibrator 19899 | -3/Section 7 | Found Alien Artifact 19899 | -3/Section 7 | Identified Core Membrane 19899 | -3/Section 7 | Installed Core Membrane, gained immunity to corruption 19996 | -3/Section 7 | Core integrity fell below 20% 20035 | -3/Section 7 | Found Alien Artifact 20035 | -3/Section 7 | Identified Core Regenerator 20035 | -3/Section 7 | Used Core Regenerator, restored core integrity (+325) 20088 | -3/Section 7 | Warped through subspace 20169 | -3/Section 7 | Spotted Executioner 20173 | -3/Section 7 | Spotted Alpha 7 20181 | -3/Section 7 | Spotted B-99 Colossus 20187 | -3/Section 7 | Destroyed by P-80 Master with Gamma Rifle Last Messages --------------- 20172_ Impulse Thruster Array destroyed. 20172_ Imp. Surge Thruster destroyed. 20172_ Core Membrane filtered system corruption (1). 20172_ Dropped Mic. Antimatter Reactor. 20173_ K-01 Serf cleans the FTL Facilitator. 20174_ Imp. Surge Thruster destroyed. 20174_ Imp. Surge Thruster burned out. 20177_ K-01 Serf cleans the Thrusters. 20178_ Imp. Transmission Jammer destroyed. 20178_ Core Membrane filtered system corruption (1). 20179_ K-01 Serf cleans the FTL Facilitator. 20180_ Navigation matrix triggers involuntary quantum shift. 20181_ K-01 Serf cleans the Construction Supplies. 20182_ System corrupted: Spacefold Activator rejected. 20182_ Penetrated by Slug. 20183_ Core Membrane filtered system corruption (1). 20185_ Acquired Spacefold Activator. 20187_ Penetrated by Slug. 20187_ Slug penetrates Machine. 20187_ Machine disabled. Map ----- +----------------------------------------------------+ | " ##????" "?????""" "???? ????????? | | " #????" """""" """"?? ?????????? | | =##????" * "??? "??????? | | " #?????" """?" ? ?????? | | " #?????" " ?????? | | " #?????" " "????? | | #?????" """ ??????? | | " #?????" "" T ??????? | | " #????#" """" ????? | | " #????# "??" "" ????? | | #????#" """" "" """ "" ????? | | " ! #????#"" p """ "???? ???????? | | " #????#""" " " "" "????????????? | | " #????#""" """" " ""????????????? | | #??#?#""" "?" """ "" "??????"??????? | | ######## # """""" "???? ??????? | | A/ k ""??? ?????? | | R R "? ?????? | | k g """"" " ????? | | /7g """??? ???? | | ######## # 7 ???? ???? | | ?????????#""" """""k ??? | | ?????????#""" ??? | | ?????????#""" ??? | | ?????????#"" u ??? | | ?????????#" @ """"""?????? | | ?????????# """"""" """" ###""???????? | | ?????????# """""""""""" #???????????? | | ?????????#####################BB###++#???????????? | | ?????????????????????????????? B#????????????????? | | ???????????????????????????????##????????????????? | | ?????????????????????????????????????????????????? | | ?????????????????????????????????????????????????? | | ?????????????????????????????????????????????????? | | ?????????????????????????????????????????????????? | | ?????????????????????????????????????????????????? | | ?????????????????????????????????????????????????? | | ?????????????????????????????????????????????????? | | ?????????????????????????????????????????????????? | | ?????????????????????????????????????????????????? | | ?????????????????????????????????????????????????? | | ?????????????????????????????????????????????????? | | ?????????????????????????????????????????????????? | | ?????????????????????????????????????????????????? | | ?????????????????????????????????????????????????? | | ?????????????????????????????????????????????????? | | ?????????????????????????????????????????????????? | | ?????????????????????????????????????????????????? | | ?????????????????????????????????????????????????? | | ?????????????????????????????????????????????????? | +----------------------------------------------------+ Best States ------------- Heat Dissipation 77 Energy Generation 35 Energy Capacity 1670 Matter Stores 300 Matter Capacity 300 Sight Range 22 Robot Scan Range 16 Terrain Scan Range 20 Terrain Scan Density 10 Jamming Range 16 Power Amplification 30 Armor Coverage 825 Core Shielding 20 Propulsion Shielding 66 Melee Speed Boost 50 Phase Shifting 10 Evasion (%) 86 Targeting Accuracy 6 Melee Accuracy 5 Target Analysis 6 Recoil Reduction 4 Offensive Hacking 40 Defensive Hacking 24 Relay Coupler Types 6 Relay Coupler Value 161 Item Schematics ----------------- Med. Storage Unit | -9/Materials | Hacked Huge Storage Unit | -9/Materials | Hacked Imp. Flight Unit | -9/Materials | Scanalyzed Trap Scanner | -8/Materials | Hacked Imp. Trap Extractor | -6/Factory | Hacked Mic. Antimatter Reactor | -4/Extension | Hacked Biomechanical Wings | -4/Hub_04(d) | Hacked Lrn. Sensor Array | -4/Hub_04(d) | Hacked Robot Schematics ------------------ M-13 Machinist | -7/Factory | Hacked Fabricated ------------ Trap Scanner | x2 | -7/Factory Biomechanical Wings | x1 | -3/Research Alien Tech Used ----------------- Subatomic Replicator Core Stripper Phase Redirector Sigix Broadsword Navigation Efficiency Matrix Spacefold Activator Core Physics Calibrator Core Membrane Core Regenerator High-powered Transdimensional Reconstructor Achievements -------------- Beloved Pwned Challenges ------------ None Game ------ Seed SegregatorCoordinationCharge Manual? 0 Play Time 06:48:20 Cumulative 375.7 hours Start 2022.12.31 @ 13:14:38 End 2023.01.02 @ 02:45:23 Sessions 13 Manual Loads 0 Difficulty Rogue Special Mode None Game No. 329 Rogue 329 Adventurer 0 Explorer 0 Win Type - Total 6 Types 4/1/0/0/0/0/1/0/0 Lore% 73 Gallery% 86 Achievement% 71 Wizard Run 0 Options --------- ASCII 0 Keyboard 0 Movement Numpad Keybinds 0 Fullscreen 2 Font 24/Terminus Map View 76x50 Tactical HUD 1 Map Filters NONE Filters NONE Steam 1 RUN: 55e97579-233e-47f1-be23-251bc9c39c5c